fUSD/lending_fUSD_20251222
["ID","MTS","AMOUNT","RATE_DAILY","PERIOD"]
[399458870,1766371844195,-500.0,0.00016473,2]
[399458871,1766371844206,-500.5380025,0.00016473,2]
[399458872,1766371844216,-500.76356067,0.00016473,2]
[399458873,1766371844227,-500.28027426,0.00016473,2]
[399458874,1766371844236,-500.0,0.00016473,2]
[399458875,1766371844247,-500.84177563,0.00016473,2]
[399458876,1766371844257,-160.23136935,0.00016473,2]
[399458877,1766371844266,-500.69670875,0.00016473,2]
[399458878,1766371844276,-500.47037435,0.00016473,2]
[399458879,1766371844286,-500.5955787,0.00016473,2]
[399458880,1766371844297,-207.53128657,0.00016473,2]
[399458881,1766371844307,-500.0,0.00016473,2]
[399458882,1766371844316,-500.0,0.00016473,2]
[399458883,1766371844325,-500.0,0.00016473,2]
[399458884,1766371844334,-499.92308063,0.00016473,2]
[399458885,1766371844343,-500.0,0.00016473,2]
[399458886,1766371844352,-530.18655741,0.00016473,2]
[399458887,1766371844361,-1098.0,0.00016573,2]
[399458888,1766371844370,-1152.44908961,0.00016656,2]
[399458889,1766371844380,-2942.0,0.00016671,2]
[399458890,1766371844390,-164.27,0.00016712,2]
[399458891,1766371844399,-1093.6,0.00016767,2]
[399458892,1766371844408,-7000.0,0.0001683,2]
[399458893,1766371844417,-7000.0,0.0001685,2]
[399458894,1766371844427,-7000.0,0.0001687,2]
[399458895,1766371844437,-423.4560495,0.0001689,2]
[399458896,1766371844446,-7000.0,0.0001689,2]
[399458897,1766371844455,-423.4560495,0.00016895,2]
[399458898,1766371844464,-151.0,0.00016897,2]
[399458899,1766371844473,-873.20215525,0.000169,2]
[399458900,1766371844483,-3729.21,0.000169,2]
[399458902,1766371844491,-251.71841889,0.000169,3]
[399458903,1766371844500,-10000.0,0.000169,2]
[399458905,1766371844509,-423.4560495,0.000169,2]
[399458907,1766371844519,-19252.74046857,0.000169,2]
[399458908,1766371844528,-784.25308604,0.000169,2]
[399458909,1766371844537,-7000.0,0.000169,2]
[399458910,1766371844546,-1518.13760257,0.000169,2]
[399458911,1766371844555,-201.47691223,0.00016901,2]
[399458913,1766371844640,-7000.0,0.0001692,2]
[399458915,1766371844650,-3500.0,0.00016931,2]
[399458917,1766371844659,-3007.1328153,0.00016931,2]
[399458918,1766371844669,-150.0,0.00016973,2]
[399458919,1766371844678,-150.11026087,0.00016973,2]
[399458920,1766371844687,-150.0,0.00016973,2]
[399458921,1766371844696,-151.33984604,0.00016983,2]
[399458922,1766371844705,-500.0,0.00016989,2]
[399458923,1766371844714,-19360.9211417,0.0001699,2]
[399458924,1766371844723,-353844.9008742,0.0001699,2]
[399458925,1766371844732,-500.0,0.0001699,2]
[399458926,1766371844741,-1490.09817043,0.0001699,2]
[399458927,1766371844750,-1490.09817043,0.0001699,2]
[399458928,1766371844759,-64127.0125108,0.00016991,2]
[399458929,1766371844769,-2500.0025,0.00016991,2]
[399458930,1766371844778,-151.0,0.00016997,2]
[399458931,1766371844787,-436.38149996,0.00016999,2]
[399458932,1766371844796,-300.0,0.00016999,2]
[399458933,1766371844810,-666.0,0.00016999,2]
[399458934,1766371844819,-1204.13904522,0.00016999,5]
[399458935,1766371844828,-300.0,0.00016999,2]
[399458936,1766371844837,-300.0,0.00016999,2]
[399458937,1766371844847,-300.0,0.00016999,2]
[399458938,1766371844856,-671.19063169,0.00016999,2]
[399458939,1766371844866,-300.0,0.00016999,2]
[399458940,1766371844876,-666.0,0.00016999,2]
[399458941,1766371844886,-1095505.0821594,0.00017,2]
[399458942,1766371845386,-317.3565138,0.00017,2]
[399458943,1766371845506,-6110824.84351665,0.00017,2]
[399458944,1766371845515,-1638088.03828635,0.00017,2]
[399458945,1766371845530,-444.89560014,0.00017,2]
[399458946,1766371845689,-301.05556083,0.00017,2]
[399458949,1766371858430,164.0,0.00034521,30]
[399458950,1766371900075,197.0,0.0003561,30]
[399458951,1766371902317,212.0,0.0003561,30]
[399458952,1766371928065,547.079772,7.945e-05,2]
[399458953,1766371952828,500.0,0.00032876,30]
[399458954,1766371952896,500.0,0.00032876,30]
[399458955,1766371953087,500.0,0.00032876,30]
[399458956,1766371953372,500.0,0.00032876,30]
[399458957,1766371953526,500.0,0.00032876,30]
[399458958,1766371953753,500.0,0.00032876,30]
[399458959,1766371953995,486.2297857,0.00032876,30]
[399458960,1766371965001,214.0,0.0003561,30]
[399458961,1766372091716,155.953396,0.00035,31]
[399458962,1766372091799,151.0,0.00035,31]
[399458963,1766372093262,151.0,0.00035,31]
[399458964,1766372128554,151.0,0.00035,31]
[399458965,1766372129428,151.0,0.00035,31]
[399458966,1766372155163,153.951326,0.00035,31]
[399458967,1766372156689,153.951326,0.00035,31]
[399458968,1766372158860,153.951326,0.00035,31]
[399458969,1766372159806,153.951326,0.00035,31]
[399458970,1766372166245,151.0,0.00035,31]
[399458971,1766372186995,-150.92,0.00013642,2]
[399458972,1766372187016,-151.17,0.00013642,2]
[399458973,1766372187037,-1200.0,0.00013642,2]
[399458974,1766372187057,-151.09,0.00013643,2]
[399458975,1766372187079,-151.28,0.00013643,2]
[399458976,1766372187098,-151.83,0.00013643,2]
[399458977,1766372187118,-150.71,0.00013643,2]
[399458978,1766372187137,-150.55,0.00013643,2]
[399458979,1766372187156,-151.34,0.00013643,2]
[399458980,1766372187175,-150.03,0.00013643,2]
[399458981,1766372187194,-152.75,0.00013643,2]
[399458982,1766372187213,-151.4,0.00013643,2]
[399458983,1766372187232,-151.85,0.00013643,2]
[399458984,1766372187252,-151.23,0.00013643,2]
[399458985,1766372187271,-150.57,0.00013643,2]
[399458986,1766372187290,-151.72,0.00013643,2]
[399458987,1766372187310,-150.28,0.00013643,2]
[399458988,1766372187330,-150.67,0.00013643,2]
[399458989,1766372187349,-151.6,0.00013643,2]
[399458990,1766372187368,-151.79,0.00013643,2]
[399458991,1766372187388,-152.56,0.00013643,2]
[399458992,1766372187408,-151.06,0.00013643,2]
[399458993,1766372187427,-152.16,0.00013643,2]
[399458994,1766372187449,-152.0,0.00013643,2]
[399458995,1766372187470,-300.0,0.00013643,2]
[399458996,1766372187490,-195.0,0.00013643,2]
[399458997,1766372187509,-515.99168333,0.00013643,2]
[399458998,1766372187528,-500.0,0.00013643,2]
[399458999,1766372187547,-500.0,0.00013643,2]
[399459000,1766372187566,-179.55665097,0.00013643,2]
[399459001,1766372187587,-1000.0,0.00013699,2]
[399459002,1766372187609,-165.03378812,0.00014091,2]
[399459003,1766372187628,-1000.0,0.00014191,2]
[399459004,1766372187650,-1000.0,0.00014191,2]
[399459005,1766372187671,-1507.1328153,0.00014739,2]
[399459006,1766372187691,-1500.0,0.00014739,2]
[399459007,1766372187714,-1680.0,0.00015006,2]
[399459008,1766372187736,-300.0,0.00015006,2]
[399459009,1766372187755,-300.0,0.00015006,2]
[399459010,1766372187775,-300.0,0.00015006,2]
[399459011,1766372187795,-300.0,0.00015006,2]
[399459012,1766372187815,-300.0,0.00015006,2]
[399459013,1766372187835,-300.0,0.00015007,2]
[399459014,1766372187855,-195.0,0.00015007,2]
[399459015,1766372187876,-2000.0,0.00015287,2]
[399459016,1766372187896,-1000.0,0.00015451,2]
[399459017,1766372187919,-300.0,0.00015779,2]
[399459018,1766372187941,-10001.72,0.0001578,2]
[399459019,1766372187960,-4999.99,0.0001578,2]
[399459020,1766372187982,-7842.43,0.0001578,2]
[399459021,1766372188002,-150.99,0.0001578,2]
[399459022,1766372188022,-9999.99,0.0001578,2]
[399459023,1766372188042,-332.86,0.0001578,2]
[399459024,1766372188061,-299.99,0.0001578,2]
[399459025,1766372188080,-999.99,0.0001578,2]
[399459026,1766372188101,-9999.99,0.0001578,2]
[399459027,1766372188120,-150.99,0.0001578,2]
[399459028,1766372188142,-9999.99,0.0001578,2]
[399459029,1766372188161,-2500.0,0.00015835,2]
[399459030,1766372188180,-6503.06,0.0001613,2]
[399459031,1766372188200,-6195.96,0.0001613,2]
[399459032,1766372188220,-1194.6,0.0001613,2]
[399459033,1766372188241,-3000.0,0.00016383,2]
[399459034,1766372188265,-579.1625334,0.00016437,2]
[399459035,1766372188290,-500.0,0.00016437,2]
[399459036,1766372188311,-640.85259249,0.00016437,2]
[399459037,1766372188332,-500.0,0.00016438,2]
[399459038,1766372188353,-500.0,0.00016438,2]
[399459039,1766372188374,-500.0,0.00016438,2]
[399459040,1766372188395,-500.0,0.00016438,2]
[399459041,1766372188417,-500.0,0.00016438,2]
[399459042,1766372188437,-500.0,0.00016438,2]
[399459043,1766372188460,-500.0,0.00016438,2]
[399459044,1766372188481,-500.0,0.00016438,2]
[399459045,1766372188502,-500.0,0.00016438,2]
[399459046,1766372188532,-500.0,0.00016438,2]
[399459047,1766372188561,-500.0,0.00016438,2]
[399459048,1766372188582,-500.0,0.00016438,2]
[399459049,1766372188602,-500.0,0.00016438,2]
[399459050,1766372188624,-500.0,0.00016438,2]
[399459051,1766372188645,-500.0,0.00016438,2]
[399459052,1766372188667,-500.0,0.00016438,2]
[399459053,1766372188690,-500.0,0.00016438,2]
[399459054,1766372188713,-500.0,0.00016438,2]
[399459055,1766372188737,-500.0,0.00016438,2]
[399459056,1766372188763,-500.0,0.00016438,2]
[399459057,1766372188784,-500.0,0.00016438,2]
[399459058,1766372188806,-500.0,0.00016438,2]
[399459059,1766372188827,-500.0,0.00016438,2]
[399459060,1766372188850,-500.0,0.00016438,2]
[399459061,1766372188871,-500.0,0.00016438,2]
[399459062,1766372188892,-500.0,0.00016438,2]
[399459063,1766372188918,-500.0,0.00016438,2]
[399459064,1766372188941,-500.0,0.00016438,2]
[399459065,1766372188967,-500.0,0.00016438,2]
[399459066,1766372188990,-500.0,0.00016438,2]
[399459067,1766372189013,-500.0,0.00016438,2]
[399459068,1766372189035,-500.0,0.00016438,2]
[399459069,1766372189057,-500.0,0.00016438,2]
[399459070,1766372189080,-500.0,0.00016438,2]
[399459071,1766372189104,-225.20731386,0.00016438,2]
[399459072,1766372189125,-500.0,0.00016438,2]
[399459073,1766372189145,-500.0,0.00016438,2]
[399459074,1766372189166,-500.0,0.00016438,2]
[399459075,1766372189187,-500.0,0.00016438,2]
[399459076,1766372189209,-500.0,0.00016438,2]
[399459077,1766372189232,-191.68970154,0.00016438,2]
[399459078,1766372189253,-9587.77,0.00016438,2]
[399459079,1766372189276,-240.31,0.00016446,2]
[399459080,1766372189298,-325.92,0.00016446,2]
[399459081,1766372189318,-192.34,0.00016446,2]
[399459082,1766372189342,-500.0,0.00016473,2]
[399459083,1766372189381,-500.0,0.00016473,2]
[399459084,1766372189419,-500.0,0.00016473,2]
[399459085,1766372189444,-500.0,0.00016473,2]
[399459086,1766372189488,-500.0,0.00016473,2]
[399459087,1766372189515,-180.96115395,0.00016473,2]
[399459088,1766372189538,-506.35717119,0.00016473,2]
[399459089,1766372189559,-500.0,0.00016473,2]
[399459090,1766372189579,-500.0,0.00016473,2]
[399459091,1766372189600,-500.0,0.00016473,2]
[399459092,1766372189621,-500.0,0.00016473,2]
[399459093,1766372189643,-500.71273679,0.00016473,2]
[399459094,1766372189667,-500.0,0.00016473,2]
[399459095,1766372189688,-500.87119543,0.00016473,2]
[399459096,1766372189707,-509.29558158,0.00016473,2]
[399459097,1766372189727,-500.0,0.00016473,2]
[399459098,1766372189746,-500.0,0.00016473,2]
[399459099,1766372189767,-500.0,0.00016473,2]
[399459100,1766372189792,-500.0,0.00016473,2]
[399459101,1766372189812,-156.58285256,0.00016473,2]
[399459102,1766372189833,-500.5955787,0.00016473,2]
[399459103,1766372189853,-500.40899585,0.00016473,2]
[399459104,1766372189876,-207.53128657,0.00016473,2]
[399459105,1766372189897,-164.86405043,0.00016473,2]
[399459106,1766372189921,-500.0,0.00016473,2]
[399459107,1766372190306,-500.0,0.00016473,2]
[399459108,1766372190327,-500.0,0.00016473,2]
[399459109,1766372190348,-500.0,0.00016473,2]
[399459110,1766372190368,-499.92308063,0.00016473,2]
[399459111,1766372190388,-530.18655741,0.00016473,2]
[399459112,1766372190407,-500.0,0.00016473,2]
[399459113,1766372190428,-250.0,0.00016632,2]
[399459114,1766372190448,-195.0,0.00016632,2]
[399459115,1766372190469,-160.3001174,0.0001666,2]
[399459116,1766372190489,-194.945,0.0001666,2]
[399459117,1766372190510,-250.0,0.00016765,2]
[399459118,1766372190530,-195.0,0.00016765,2]
[399459119,1766372190550,-1093.6,0.00016769,2]
[399459120,1766372190569,-200.0,0.00016792,2]
[399459121,1766372190589,-187.56540729,0.000168,2]
[399459122,1766372190610,-174.64043105,0.000168,2]
[399459123,1766372190630,-248.0,0.0001681,2]
[399459124,1766372190650,-300.0,0.00016818,2]
[399459125,1766372190670,-1380.22096449,0.00016818,2]
[399459126,1766372190691,-300.0,0.00016818,2]
[399459127,1766372190713,-150.42,0.00016825,2]
[399459128,1766372190735,-201.47691223,0.00016854,2]
[399459129,1766372190755,-300.0,0.00016896,2]
[399459130,1766372190777,-300.0,0.00016896,2]
[399459131,1766372190797,-300.0,0.00016896,2]
[399459132,1766372190818,-300.0,0.00016896,2]
[399459133,1766372190838,-510.0,0.00016899,2]
[399459134,1766372190859,-112374.57071961,0.000169,2]
[399459135,1766372190885,-484001.89312783,0.000169,2]
[399459136,1766372215754,-500.0,0.00015779,2]
[399459137,1766372215782,-357.69523147,0.00015779,2]
[399459138,1766372215806,-167.6764721,0.00016437,2]
[399459139,1766372215827,-300.77820338,0.00016437,2]
[399459140,1766372215848,-500.0,0.00016438,2]
[399459141,1766372215870,-500.0,0.00016438,2]
[399459142,1766372215891,-500.0,0.00016438,2]
[399459143,1766372215916,-500.0,0.00016438,2]
[399459144,1766372215939,-500.0,0.00016438,2]
[399459145,1766372215962,-500.0,0.00016438,2]
[399459146,1766372215983,-500.0,0.00016438,2]
[399459147,1766372216005,-500.0,0.00016438,2]
[399459148,1766372216026,-500.0,0.00016438,2]
[399459149,1766372216048,-500.0,0.00016438,2]
[399459150,1766372216069,-500.0,0.00016438,2]
[399459151,1766372216090,-500.0,0.00016438,2]
[399459152,1766372216113,-500.0,0.00016438,2]
[399459153,1766372216133,-500.0,0.00016438,2]
[399459154,1766372216155,-500.0,0.00016438,2]
[399459155,1766372216177,-500.0,0.00016438,2]
[399459156,1766372216200,-500.0,0.00016438,2]
[399459157,1766372216223,-500.0,0.00016438,2]
[399459158,1766372216246,-500.0,0.00016438,2]
[399459159,1766372216268,-500.0,0.00016438,2]
[399459160,1766372216290,-500.0,0.00016438,2]
[399459161,1766372216313,-500.0,0.00016438,2]
[399459162,1766372216336,-500.0,0.00016438,2]
[399459163,1766372216358,-500.0,0.00016438,2]
[399459164,1766372216380,-500.0,0.00016438,2]
[399459165,1766372216402,-500.0,0.00016438,2]
[399459166,1766372216424,-500.0,0.00016438,2]
[399459167,1766372216446,-500.0,0.00016438,2]
[399459168,1766372216485,-500.0,0.00016438,2]
[399459169,1766372216793,-500.0,0.00016438,2]
[399459170,1766372216814,-500.0,0.00016438,2]
[399459171,1766372216834,-500.0,0.00016438,2]
[399459172,1766372216855,-500.0,0.00016438,2]
[399459173,1766372216876,-500.0,0.00016438,2]
[399459174,1766372216897,-500.0,0.00016438,2]
[399459175,1766372216922,-500.0,0.00016438,2]
[399459176,1766372216942,-500.0,0.00016438,2]
[399459177,1766372216964,-500.0,0.00016438,2]
[399459178,1766372216986,-410.68889731,0.00016438,2]
[399459179,1766372217006,-500.0,0.00016438,2]
[399459180,1766372217027,-500.0,0.00016438,2]
[399459181,1766372217046,-151.0,0.00016638,2]
[399459182,1766372217065,-1989.52963802,0.000168,2]
[399459183,1766372217085,-1989.529638,0.00016811,2]
[399459184,1766372217106,-1989.529638,0.00016822,2]
[399459185,1766372217125,-7000.0,0.0001683,2]
[399459186,1766372217145,-1989.529638,0.00016833,2]
[399459187,1766372217171,-515998.10687217,0.000169,2]
[399459188,1766372217191,-1000.0,0.000169,2]
[399459189,1766372217210,-3729.21,0.000169,2]
[399459190,1766372217230,-771.66914966,0.000169,2]
[399459191,1766372217250,-1518.13760257,0.000169,2]
[399459192,1766372217270,-10000.0,0.000169,2]
[399459193,1766372217290,-2976.1983083,0.000169,2]
[399459194,1766372217309,-169.11922478,0.000169,2]
[399459195,1766372217330,-1957.72726214,0.00016931,2]
[399459196,1766372217350,-259.27852533,0.00016963,2]
[399459197,1766372217369,-150.11026087,0.00016973,2]
[399459198,1766372217389,-500.0,0.00016973,2]
[399459199,1766372217408,-605.42609762,0.00016973,2]
[399459200,1766372217429,-150.0,0.00016973,2]
[399459201,1766372217449,-151.33984604,0.00016983,2]
[399459202,1766372217468,-151.0,0.0001699,2]
[399459203,1766372217490,-151.0,0.0001699,2]
[399459204,1766372217510,-151.0,0.0001699,2]
[399459205,1766372217530,-151.0,0.0001699,2]
[399459206,1766372217550,-151.0,0.0001699,2]
[399459207,1766372217569,-151.0,0.0001699,2]
[399459208,1766372217589,-151.0,0.0001699,2]
[399459209,1766372217609,-151.0,0.0001699,2]
[399459210,1766372217631,-151.0,0.0001699,2]
[399459211,1766372217654,-151.0,0.0001699,2]
[399459212,1766372217674,-151.0,0.0001699,2]
[399459213,1766372217695,-151.0,0.0001699,2]
[399459214,1766372217714,-151.0,0.0001699,2]
[399459215,1766372217734,-151.0,0.0001699,2]
[399459216,1766372217755,-151.0,0.0001699,2]
[399459217,1766372217775,-151.0,0.0001699,2]
[399459218,1766372217797,-151.0,0.0001699,2]
[399459219,1766372217818,-151.0,0.0001699,2]
[399459220,1766372217838,-283.7540495,0.0001699,2]
[399459221,1766372217858,-151.0,0.00016997,2]
[399459222,1766372217878,-151.0,0.00016997,2]
[399459223,1766372217900,-151.0,0.00016997,2]
[399459224,1766372217928,-553.4762354,0.00016998,2]
[399459225,1766372217950,-140477.7573644,0.00016998,2]
[399459226,1766372217971,-6250.3435069,0.00016998,2]
[399459227,1766372217994,-4840.2302854,0.00016998,2]
[399459228,1766372218015,-20641.15805264,0.00017,2]
[399459229,1766372249418,300.0,0.00035616,30]
[399459230,1766372250040,311.1,0.00035616,30]
[399459231,1766372250648,322.6107,0.00035616,30]
[399459232,1766372251257,334.5472959,0.00035616,30]
[399459233,1766372251881,346.92554585,0.00035616,30]
[399459234,1766372252473,359.76179104,0.00035616,30]
[399459235,1766372253095,373.07297731,0.00035616,30]
[399459236,1766372253710,386.87667747,0.00035616,30]
[399459237,1766372254306,190.58021019,0.00035616,30]
[399459238,1766372284603,1489.58512952,0.00035616,120]
[399459239,1766372327915,999.0,0.00035616,120]
[399459240,1766372349151,-500.0,0.00013643,2]
[399459241,1766372349177,-500.0,0.00013643,2]
[399459242,1766372349198,-1000.0,0.00014191,2]
[399459243,1766372349219,-1000.0,0.00014191,2]
[399459244,1766372349241,-1500.0,0.00014739,2]
[399459245,1766372349263,-1500.0,0.00014739,2]
[399459246,1766372349284,-952.82457792,0.00015287,2]
[399459247,1766372349304,-2000.0,0.00015287,2]
[399459248,1766372349328,-418047.17542208,0.0001568,2]
[399459249,1766372429150,151.0,0.00035,31]
[399459250,1766372438387,151.0,0.00035,31]
[399459251,1766372442786,-168.7067,0.00013643,2]
[399459252,1766372466451,151.0,0.00035,31]
[399459253,1766372472767,151.0,0.00035,31]
[399459255,1766372524415,300.0,0.00035616,30]
[399459256,1766372525015,311.1,0.00035616,30]
[399459257,1766372525599,322.6107,0.00035616,30]
[399459258,1766372526224,430.1346328,0.00035616,30]
[399459259,1766372529539,177.690459,0.00035,31]
[399459260,1766372531233,177.690459,0.00035,31]
[399459261,1766372533112,177.690459,0.00035,31]
[399459262,1766372534487,151.000011,0.00035,31]
[399459263,1766372534567,177.690459,0.00035,31]
[399459264,1766372569227,199.0,0.00034246,30]
[399459265,1766372569462,199.0,0.00034931,31]
[399459266,1766372569694,199.0,0.00035616,32]
[399459267,1766372586043,151.0,0.00035,31]
[399459268,1766372588171,151.0,0.00035,31]
[399459269,1766372594714,666.0,0.00034999,30]
[399459271,1766372693286,151.0,0.00035,31]
[399459272,1766372695476,151.0,0.00035,31]
[399459273,1766372740362,151.0,0.00035,31]
[399459274,1766372741878,151.0,0.00035,31]
[399459275,1766372743415,151.0,0.00035,31]
[399459276,1766372744902,198.221209,0.00035,31]
[399459278,1766372766781,151.0,0.00035,31]
[399459280,1766372773305,151.0,0.00035,31]
[399459283,1766372859382,2000.0,0.00035616,120]
[399459284,1766372860002,2000.0,0.00035616,120]
[399459285,1766372860633,2000.0,0.00035616,120]
[399459286,1766372860910,2000.0,0.00035616,120]
[399459287,1766372861224,2000.0,0.00035616,120]
[399459288,1766372922427,1749.525,0.000356,120]
[399459290,1766372940490,1000.0,0.00035615,30]
[399459291,1766372940731,1000.0,0.00035615,30]
[399459292,1766372941040,1000.0,0.00035615,30]
[399459293,1766372941844,1000.0,0.00034999,30]
[399459294,1766373031486,-500.0,0.00013643,2]
[399459295,1766373031495,-500.0,0.00013643,2]
[399459296,1766373031505,-500.0,0.00013643,2]
[399459297,1766373031515,-500.0,0.00013643,2]
[399459298,1766373031524,-500.0,0.00013643,2]
[399459299,1766373031534,-500.0,0.00013643,2]
[399459300,1766373031543,-500.0,0.00013643,2]
[399459301,1766373031553,-195.0,0.00013643,2]
[399459302,1766373031563,-300.0,0.00013643,2]
[399459303,1766373031572,-300.0,0.00013644,2]
[399459304,1766373031583,-195.0,0.00013645,2]
[399459305,1766373031592,-300.0,0.00013647,2]
[399459306,1766373031602,-195.0,0.00013653,2]
[399459307,1766373031614,-500.0,0.00013698,2]
[399459308,1766373031623,-180.87129964,0.00013698,2]
[399459309,1766373031636,-150.0,0.0001419,2]
[399459310,1766373031646,-478.05431034,0.00014191,2]
[399459311,1766373031658,-521.94568966,0.00014191,2]
[399459312,1766373031668,-1000.0,0.00014191,2]
[399459313,1766373031677,-1000.0,0.00014191,2]
[399459314,1766373031686,-1000.0,0.00014191,2]
[399459315,1766373031695,-1000.0,0.00014191,2]
[399459316,1766373031705,-1000.0,0.00014191,2]
[399459317,1766373031714,-1000.0,0.00014191,2]
[399459318,1766373031724,-200.0,0.00014237,2]
[399459319,1766373031733,-1852.42,0.00014288,2]
[399459320,1766373031742,-150.0,0.00014308,2]
[399459321,1766373031752,-3526.43,0.00014328,2]
[399459323,1766373031762,-983.12,0.00014365,2]
[399459325,1766373031771,-4266.2,0.0001449,2]
[399459327,1766373031780,-16517.22,0.00014709,2]
[399459329,1766373031790,-3114.56167685,0.00014738,2]
[399459332,1766373031810,-410.53832315,0.00014738,2]
[399459334,1766373031822,-232.0175883,0.00014738,2]
[399459335,1766373037607,-9767.9724117,0.00014738,2]
[399459336,1766373037619,-150.99,0.00014738,2]
[399459337,1766373037628,-192.1596304,0.00014738,2]
[399459338,1766373037662,-807.8303696,0.00014738,2]
[399459339,1766373037673,-9291.48,0.00014738,2]
[399459340,1766373037683,-299.99,0.00014738,2]
[399459341,1766373037692,-3378.96,0.00014738,2]
[399459342,1766373037702,-150.99,0.00014738,2]
[399459343,1766373037711,-1500.0,0.00014739,2]
[399459344,1766373037721,-1500.0,0.00014739,2]
[399459345,1766373037734,-1500.0,0.00014739,2]
[399459346,1766373037744,-171.94936234,0.00014739,2]
[399459347,1766373037757,-869.49602091,0.00014739,2]
[399459348,1766373037769,-284.94490973,0.00014739,2]
[399459349,1766373037790,-300.59467454,0.00014739,2]
[399459350,1766373037802,-1500.0,0.00014739,2]
[399459351,1766373037812,-1500.0,0.00014739,2]
[399459352,1766373037823,-1590.93800386,0.00014739,2]
[399459353,1766373037834,-300.0,0.00015007,2]
[399459354,1766373037847,-300.0,0.00015007,2]
[399459355,1766373037857,-300.0,0.00015007,2]
[399459356,1766373037869,-300.0,0.00015007,2]
[399459357,1766373037880,-300.0,0.00015007,2]
[399459359,1766373037889,-195.0,0.00015007,2]
[399459361,1766373037900,-300.0,0.00015007,2]
[399459363,1766373037911,-300.0,0.00015007,2]
[399459364,1766373037922,-300.0,0.00015007,2]
[399459365,1766373037933,-300.0,0.00015007,2]
[399459367,1766373037944,-300.0,0.00015007,2]
[399459369,1766373037955,-300.0,0.00015007,2]
[399459371,1766373037965,-250.0,0.00015007,2]
[399459373,1766373037976,-195.0,0.00015007,2]
[399459375,1766373037986,-300.0,0.00015007,2]
[399459377,1766373037996,-500.0,0.00015014,2]
[399459378,1766373038006,-2006.61121475,0.00015287,2]
[399459380,1766373038015,-2000.0,0.00015287,2]
[399459382,1766373038026,-1007.00799583,0.00015287,2]
[399459384,1766373038036,-2000.0,0.00015287,2]
[399459386,1766373038047,-2000.0,0.00015287,2]
[399459388,1766373038057,-255.0,0.00015311,2]
[399459390,1766373038069,-194.945,0.00015366,2]
[399459392,1766373038082,-3118.99182972,0.00015589,2]
[399459395,1766373038093,-151.0,0.00015676,2]
[399459398,1766373038103,-596.00002808,0.00015679,2]
[399459400,1766373038115,-581952.82457792,0.0001568,2]
[399459402,1766373038125,-151.0,0.00015683,2]
[399459404,1766373038135,-188.84698626,0.00015689,7]
[399459406,1766373038147,-3118.99182965,0.00015735,2]
[399459408,1766373038163,-353.92874992,0.00015835,2]
[399459410,1766373038173,-2236.82314427,0.00015835,2]
[399459411,1766373038183,-331.2933,0.00015835,2]
[399459414,1766373038195,-20066.9,0.00015878,2]
[399459415,1766373038206,-3118.99182965,0.0001588,2]
[399459417,1766373038216,-3118.99182965,0.00016026,2]
[399459419,1766373038226,-256.08,0.00016099,2]
[399459422,1766373038239,-191.03630005,0.00016141,2]
[399459424,1766373038250,-3118.99182965,0.00016172,2]